bitfinex/quotes_BTCUSD_20250711
["timestamp","ask_amount","ask_price","bid_price","bid_amount"]
[1752258318867,1.63278013,117540.0,117530.0,0.10692]
[1752258322741,0.61086229,117540.0,117530.0,0.10692]
[1752258322940,1.0252362,117540.0,117530.0,0.11183]
[1752258323181,0.86781855,117540.0,117530.0,0.10889]
[1752258323384,0.98313855,117540.0,117530.0,0.10889]
[1752258323505,1.00274855,117540.0,117530.0,0.10692]
[1752258324514,0.87142855,117540.0,117530.0,0.10692]
[1752258324903,1.64405404,117540.0,117530.0,0.09375443]
[1752258325119,2.2339225,117540.0,117530.0,0.08525186]
[1752258325319,1.60867327,117540.0,117530.0,0.08525186]
[1752258325532,2.068733,117540.0,117530.0,0.07674929]
[1752258325872,2.064733,117540.0,117530.0,0.06824672]
[1752258326083,0.004,117510.0,117500.0,0.002]
[1752258326288,1.04475825,117510.0,117500.0,0.002]
[1752258326689,1.04262885,117510.0,117500.0,0.002]
[1752258326909,1.55717091,117510.0,117500.0,0.002]
[1752258327100,1.54866151,117510.0,117500.0,0.002]
[1752258327639,0.52682367,117510.0,117500.0,0.002]
[1752258327853,0.99726377,117510.0,117500.0,0.002]
[1752258328049,0.99826377,117510.0,117500.0,0.002]
[1752258328279,0.86377377,117510.0,117500.0,0.00397]
[1752258328455,0.97985377,117510.0,117500.0,0.00691]
[1752258328774,0.97885377,117510.0,117500.0,0.00397]
[1752258329063,0.85057377,117510.0,117500.0,0.00691]
[1752258329264,0.96262377,117510.0,117500.0,0.00691]
[1752258329487,0.96262377,117510.0,117500.0,0.00791]
[1752258329488,0.96062377,117510.0,117500.0,0.00791]
[1752258329694,0.99786377,117510.0,117500.0,0.003]
[1752258329892,1.44314269,117510.0,117500.0,0.003]
[1752258330146,0.99786377,117510.0,117500.0,0.003]
[1752258333038,0.99786377,117510.0,117500.0,0.004]
[1752258338175,0.99790377,117510.0,117500.0,0.004]
[1752258339893,1.44318269,117510.0,117500.0,0.004]
[1752258340485,0.99790377,117510.0,117500.0,0.004]
[1752258342462,1.52861262,117510.0,117500.0,0.004]
[1752258343100,0.004,117490.0,117480.0,0.002]
[1752258343306,1.40560724,117490.0,117480.0,0.002]
[1752258343503,1.40347784,117490.0,117480.0,0.002]
[1752258343706,1.42461784,117490.0,117480.0,0.002]
[1752258344117,1.42461784,117490.0,117480.0,0.003]
[1752258344327,1.42461784,117490.0,117480.0,0.00349829]
[1752258344750,1.42461784,117490.0,117480.0,0.00749829]
[1752258345829,1.43495889,117490.0,117480.0,0.00749829]
[1752258351410,1.53492967,117490.0,117480.0,0.00749829]
[1752258352084,1.54344045,117490.0,117480.0,0.00749829]
[1752258352354,0.004,117470.0,117460.0,0.002]
[1752258352588,1.50386802,117470.0,117460.0,0.00208484]
[1752258352814,1.50173862,117470.0,117460.0,0.00208484]
[1752258353020,0.0362,117450.0,117440.0,0.002]
[1752258353237,1.50213802,117450.0,117440.0,0.00204976]
[1752258353451,1.50323862,117450.0,117440.0,0.00204976]
[1752258353694,1.58167381,117450.0,117440.0,0.00204976]
[1752258354345,1.60698847,117450.0,117440.0,0.00204976]
[1752258354755,1.55409228,117450.0,117440.0,0.00204976]
[1752258355184,1.40398228,117450.0,117440.0,0.00204976]
[1752258355394,1.52066228,117450.0,117440.0,0.00420976]
[1752258355604,1.52066228,117450.0,117440.0,0.00204976]
[1752258355813,1.55609228,117450.0,117440.0,0.00204976]
[1752258358730,1.55809228,117450.0,117440.0,0.00204976]
[1752258359120,1.42681228,117450.0,117440.0,0.00204976]
[1752258359323,1.55809228,117450.0,117440.0,0.00204976]
[1752258361379,1.64751228,117450.0,117440.0,0.00204976]
[1752258361560,1.55809228,117450.0,117440.0,0.00204976]
[1752258367161,0.0349,117430.0,117420.0,0.002]
[1752258367391,1.0555991,117430.0,117420.0,0.00208495]
[1752258367599,1.0566997,117430.0,117420.0,0.00208495]
[1752258367804,1.51987862,117430.0,117420.0,0.00208495]
[1752258368225,1.0745997,117430.0,117420.0,0.00208495]
[1752258368428,1.0745997,117430.0,117420.0,0.00308495]
[1752258370357,1.55477201,117430.0,117420.0,0.00308495]
[1752258370574,1.28941454,117420.0,117410.0,0.0004]
[1752258370801,1.49764862,117420.0,117410.0,0.0004]
[1752258371018,1.50287862,117420.0,117410.0,0.0004]
[1752258371267,1.52925687,117420.0,117410.0,0.0004]
[1752258371756,0.9190497,117420.0,117410.0,0.00256]
[1752258371991,1.0225697,117420.0,117410.0,0.0055]
[1752258372198,1.0225697,117420.0,117410.0,0.00256]
[1752258372404,1.0225697,117420.0,117410.0,0.0004]
[1752258372625,1.46784862,117420.0,117410.0,0.0004]
[1752258372844,1.0245697,117420.0,117410.0,0.0004]
[1752258373056,1.0408697,117420.0,117410.0,0.0004]
[1752258373261,1.50164862,117420.0,117410.0,0.0004]
[1752258373481,1.50364862,117420.0,117410.0,0.0004]
[1752258374308,1.50687862,117420.0,117410.0,0.0004]
[1752258374748,1.51282046,117420.0,117410.0,0.0004]
[1752258374934,1.53206046,117420.0,117410.0,0.0004]
[1752258376096,1.40074046,117420.0,117410.0,0.0004]
[1752258376332,1.0776097,117420.0,117410.0,0.00256]
[1752258376546,1.52288862,117420.0,117410.0,0.00256]
[1752258376733,1.52288862,117420.0,117410.0,0.0004]
[1752258377187,1.06857546,117420.0,117410.0,0.0004]
[1752258378372,1.07452128,117420.0,117410.0,0.0004]
[1752258380168,1.51391853,117420.0,117410.0,0.0004]
[1752258380805,1.07767385,117420.0,117410.0,0.0004]
[1752258381668,1.51391853,117420.0,117410.0,0.0004]
[1752258382502,1.07767385,117420.0,117410.0,0.0004]
[1752258383785,1.04272385,117420.0,117410.0,0.00249]
[1752258384251,1.04272385,117420.0,117410.0,0.0004]
[1752258384463,1.07502385,117420.0,117410.0,0.0004]
[1752258384650,1.07817385,117420.0,117410.0,0.0004]
[1752258386114,1.07817385,117420.0,117410.0,0.0004]
[1752258390203,1.07502385,117420.0,117410.0,0.0004]
[1752258394271,1.09336031,117420.0,117410.0,0.0004]
[1752258397479,1.09651031,117420.0,117410.0,0.0004]
[1752258397685,1.53275499,117420.0,117410.0,0.0004]
[1752258399156,1.55401937,117420.0,117410.0,0.0004]
[1752258399801,1.55404992,117420.0,117410.0,0.0004]
[1752258400220,1.60324939,117420.0,117410.0,0.0004]
[1752258402092,1.57687114,117420.0,117410.0,0.0004]
[1752258404444,1.57687367,117420.0,117410.0,0.0004]
[1752258405570,1.44555367,117420.0,117410.0,0.0004]
[1752258405774,1.0925068,117420.0,117410.0,0.00548]
[1752258405983,1.07176558,117420.0,117410.0,0.00548]
[1752258406191,1.51864245,117420.0,117410.0,0.00548]
[1752258406392,1.51864245,117420.0,117410.0,0.00249]
[1752258407019,1.54964245,117420.0,117410.0,0.0004]
[1752258408178,1.55275245,117420.0,117410.0,0.0004]
[1752258409486,1.57557367,117420.0,117410.0,0.0004]
[1752258411152,1.5695922,117420.0,117410.0,0.0004]
[1752258411360,1.57810805,117420.0,117410.0,0.0004]
[1752258411768,1.59260526,117420.0,117410.0,0.0004]
[1752258412028,1.58408926,117420.0,117410.0,0.0004]
[1752258412231,1.5695922,117420.0,117410.0,0.0004]
[1752258416488,1.5695922,117420.0,117400.0,0.0024]
[1752258416689,1.38166399,117410.0,117400.0,0.0024]
[1752258416854,1.48542098,117410.0,117400.0,0.0024]
[1752258417792,1.50411098,117410.0,117400.0,0.00442]
[1752258418987,1.37287098,117410.0,117400.0,0.00761]
[1752258419190,0.52680731,117410.0,117400.0,0.03861]
[1752258419396,0.97368418,117410.0,117400.0,0.03861]
[1752258419603,1.40322459,117410.0,117400.0,0.03861]
[1752258420036,1.40422459,117410.0,117400.0,0.03861]
[1752258420245,1.40422459,117410.0,117400.0,0.02271]
[1752258420468,1.42259615,117410.0,117400.0,0.03861]
[1752258421166,1.40422459,117410.0,117400.0,0.03861]
[1752258421849,1.40422459,117410.0,117400.0,0.02271]
[1752258422028,1.42259581,117410.0,117400.0,0.02271]
[1752258423122,1.42259581,117410.0,117400.0,0.00761]
[1752258423536,1.42259581,117410.0,117400.0,0.02391]
[1752258424618,0.97571894,117410.0,117400.0,0.02391]
[1752258424836,1.42259581,117410.0,117400.0,0.03991]
[1752258427106,2.4225974,117410.0,117400.0,0.03991]
[1752258427751,2.2913574,117410.0,117400.0,0.03991]
[1752258427949,2.4225974,117410.0,117400.0,0.03991]
[1752258428199,1.97572053,117410.0,117400.0,0.03991]
[1752258428421,1.95734772,117410.0,117400.0,0.03991]
[1752258428597,2.40422459,117410.0,117400.0,0.03991]
[1752258429384,2.40422459,117410.0,117400.0,0.02391]
[1752258430213,2.40422459,117410.0,117400.0,0.04011]
[1752258431240,1.51047085,117410.0,117400.0,0.04011]
[1752258431439,2.40422459,117410.0,117400.0,0.04011]
[1752258432020,2.40422459,117410.0,117400.0,0.02391]
[1752258432233,2.40422459,117410.0,117400.0,0.00761]
[1752258432706,2.42259617,117410.0,117400.0,0.00761]
[1752258434594,2.42471617,117410.0,117400.0,0.00442]
[1752258435041,2.5455561,117410.0,117400.0,0.0024]
[1752258436185,2.4143161,117410.0,117400.0,0.0024]
[1752258436401,2.5101061,117410.0,117400.0,0.00442]
[1752258436618,2.5101061,117410.0,117400.0,0.00747]
[1752258437964,2.3789061,117410.0,117400.0,0.00747]
[1752258438205,1.02069,117410.0,117400.0,0.03927]
[1752258438429,1.15589,117410.0,117400.0,0.03927]
[1752258438659,1.60276687,117410.0,117400.0,0.03927]
[1752258438915,1.92407687,117410.0,117400.0,0.03927]
[1752258439131,1.58307687,117410.0,117400.0,0.03927]
[1752258439338,1.92307687,117410.0,117400.0,0.04027]
[1752258439752,1.79187687,117410.0,117400.0,0.04027]
[1752258439961,1.92307687,117410.0,117400.0,0.04027]
[1752258440182,1.79187687,117410.0,117400.0,0.04027]
[1752258440386,1.92307687,117410.0,117400.0,0.04027]
[1752258440813,1.92207687,117410.0,117400.0,0.04027]
[1752258441713,1.92207687,117410.0,117400.0,0.04127]
[1752258442637,1.78687687,117410.0,117400.0,0.04127]
[1752258442893,1.4752,117410.0,117400.0,0.12669993]
[1752258444685,1.48495495,117410.0,117400.0,0.12669993]
[1752258446481,1.93183182,117410.0,117400.0,0.12669993]
[1752258452537,1.93183182,117410.0,117400.0,0.04127]
[1752258455285,1.94637267,117410.0,117400.0,0.00947]
[1752258455592,2.42682954,117410.0,117400.0,0.0044]
[1752258455806,2.42993954,117410.0,117400.0,0.0044]
[1752258456859,2.45548254,117410.0,117400.0,0.0044]
[1752258458101,2.54091247,117410.0,117400.0,0.0044]
[1752258459749,2.54091247,117410.0,117400.0,0.0034]
[1752258460157,2.54091247,117410.0,117400.0,0.0044]
[1752258460314,2.54091247,117410.0,117400.0,0.0034]
[1752258460533,2.54191247,117410.0,117400.0,0.0024]
[1752258461062,2.54291247,117410.0,117400.0,0.0024]
[1752258463240,0.83661772,117390.0,117380.0,0.0024]
[1752258463461,1.05518765,117390.0,117380.0,0.0024]
[1752258463906,1.06374765,117390.0,117380.0,0.0024]
[1752258464580,1.06374765,117390.0,117380.0,0.00289807]
[1752258465207,0.57658078,117390.0,117380.0,0.00792807]
[1752258465423,1.02943765,117390.0,117380.0,0.00792807]
[1752258465640,1.02943765,117390.0,117380.0,0.00487807]
[1752258465844,1.02943765,117390.0,117380.0,0.00587807]
[1752258466485,1.06467765,117390.0,117380.0,0.00389807]
[1752258467690,1.09067131,117390.0,117380.0,0.00489807]
[1752258468287,1.09067131,117390.0,117380.0,0.00389807]
[1752258468868,1.09067131,117390.0,117380.0,0.00289807]
[1752258475872,1.08753131,117390.0,117380.0,0.00289807]
[1752258479768,1.09067131,117390.0,117380.0,0.00289807]
[1752258481182,1.09067131,117390.0,117370.0,0.0004]
[1752258481183,0.3751,117380.0,117370.0,0.0004]
[1752258481375,1.0405868,117380.0,117370.0,0.00044987]
[1752258482190,1.0253868,117380.0,117370.0,0.00144987]
[1752258482399,1.0509388,117380.0,117370.0,0.00144987]
[1752258482620,1.0665388,117380.0,117370.0,0.00144987]
[1752258482821,1.0665388,117380.0,117370.0,0.00244987]
[1752258483410,1.0500388,117380.0,117370.0,0.00244987]
[1752258483582,1.0500388,117380.0,117370.0,0.00443987]
[1752258483784,1.49691567,117380.0,117370.0,0.00244987]
[1752258484007,1.51545567,117380.0,117370.0,0.00244987]
[1752258485387,1.52999652,117380.0,117370.0,0.00244987]
[1752258486251,1.52902652,117380.0,117370.0,0.00144987]
[1752258486650,1.52902652,117380.0,117370.0,0.00244987]
[1752258487211,1.52902652,117380.0,117370.0,0.00144987]
[1752258487414,1.52902652,117380.0,117370.0,0.00044987]
[1752258487826,1.52902652,117380.0,117370.0,0.00144987]
[1752258488035,1.52902652,117380.0,117370.0,0.00044987]
[1752258490468,0.04917085,117370.0,117360.0,0.0024]
[1752258490830,1.50676392,117370.0,117360.0,0.0024]
[1752258491038,1.50463452,117370.0,117360.0,0.0024]
[1752258491241,1.52571452,117370.0,117360.0,0.0024]
[1752258494838,1.39459452,117370.0,117360.0,0.0024]
[1752258495033,1.04106765,117370.0,117360.0,0.00747]
[1752258495210,0.95866772,117370.0,117360.0,0.00747]
[1752258495741,1.40554459,117370.0,117360.0,0.00747]
[1752258495907,0.95866772,117370.0,117360.0,0.00747]
[1752258496604,1.52539452,117370.0,117360.0,0.0024]
[1752258496822,0.04897085,117350.0,117340.0,0.0024]
[1752258497038,0.93982712,117350.0,117340.0,0.00460987]
[1752258497245,0.93769772,117350.0,117340.0,0.00460987]
[1752258497449,0.96325672,117350.0,117340.0,0.00460987]
[1752258497737,0.96325672,117350.0,117340.0,0.00244987]
[1752258497910,1.08230665,117350.0,117340.0,0.00244987]
[1752258499453,1.04868665,117350.0,117340.0,0.00244987]
[1752258499648,0.83213672,117350.0,117340.0,0.00460987]
[1752258499853,0.96112672,117350.0,117340.0,0.03983987]
[1752258500053,0.80444772,117350.0,117340.0,0.03983987]
[1752258500255,0.13415,117350.0,117340.0,0.03983987]
[1752258500528,0.4762794,117350.0,117340.0,0.05315179]
[1752258500803,0.92102687,117350.0,117340.0,0.03983987]
[1752258502318,0.93556772,117350.0,117340.0,0.03983987]
[1752258502685,0.93769772,117350.0,117340.0,0.00783987]
[1752258503115,0.93769772,117350.0,117340.0,0.00244987]
[1752258503116,1.05774765,117350.0,117340.0,0.00244987]
[1752258504059,1.08330765,117350.0,117340.0,0.00244987]
[1752258506404,0.38917085,117340.0,117330.0,0.0004]
[1752258506620,1.50160452,117340.0,117330.0,0.0004]
[1752258506823,1.50462452,117340.0,117330.0,0.0004]
[1752258507268,1.28292459,117330.0,117320.0,0.0024]
[1752258507485,0.35757085,117320.0,117310.0,0.0004]
[1752258507695,1.50160452,117320.0,117310.0,0.0004]
[1752258507942,0.47875078,117320.0,117310.0,0.0004]
[1752258508145,0.50196685,117320.0,117310.0,0.00579]
[1752258508364,0.50499685,117320.0,117310.0,0.02149]
[1752258508602,0.95187372,117320.0,117310.0,0.03709]
[1752258509019,0.93492772,117320.0,117310.0,0.03709]
[1752258509236,0.47455,117320.0,117310.0,0.03639]
[1752258509662,0.47555,117320.0,117310.0,0.03639]
[1752258510342,0.48494158,117320.0,117310.0,0.03639]
[1752258510776,0.35342158,117320.0,117310.0,0.03639]
[1752258510993,0.92065594,117320.0,117310.0,0.02079]
[1752258511259,0.92065594,117320.0,117310.0,0.00579]
[1752258511663,0.92065594,117320.0,117310.0,0.00679]
[1752258511868,0.92065594,117320.0,117310.0,0.00779]
[1752258514324,0.48394158,117320.0,117310.0,0.00779]
[1752258514722,0.92065594,117320.0,117310.0,0.00779]
[1752258515441,0.78913594,117320.0,117310.0,0.00779]
[1752258515776,0.92061594,117320.0,117310.0,0.02309]
[1752258516428,0.48390158,117320.0,117310.0,0.03969]
[1752258517598,0.48390158,117320.0,117310.0,0.0024]
[1752258517599,1.51494728,117320.0,117310.0,0.0024]
[1752258517754,1.67283528,117320.0,117300.0,0.0024]
[1752258517954,1.33863805,117310.0,117300.0,0.0024]
[1752258518244,0.90192429,117310.0,117300.0,0.0024]
[1752258518410,1.01345929,117310.0,117300.0,0.0024]
[1752258518837,1.01345929,117310.0,117300.0,0.0034]
[1752258519204,1.01345929,117310.0,117300.0,0.00354967]
[1752258520052,1.04747929,117310.0,117300.0,0.00354967]
[1752258520236,1.4987345,117310.0,117300.0,0.00254967]
[1752258520747,1.26199957,117300.0,117290.0,0.0004]
[1752258520948,1.4850995,117300.0,117290.0,0.0004498]
[1752258522581,0.61167078,117300.0,117290.0,0.0004498]
[1752258522897,1.4850995,117300.0,117290.0,0.0004498]
[1752258523506,1.4890995,117300.0,117290.0,0.0004498]
[1752258523883,0.34,117290.0,117280.0,0.0022]
[1752258524086,0.99679429,117290.0,117280.0,0.0022]
[1752258524433,0.91222436,117290.0,117280.0,0.00759]
[1752258525069,0.91422436,117290.0,117280.0,0.00759]
[1752258525304,0.91635436,117290.0,117280.0,0.00759]
[1752258525737,0.91839436,117290.0,117280.0,0.00759]
[1752258526164,1.00689429,117290.0,117280.0,0.0022]
[1752258526374,1.00382429,117290.0,117280.0,0.0022]
[1752258528013,0.87130429,117290.0,117280.0,0.0022]
[1752258528213,1.01914329,117290.0,117280.0,0.0022]
[1752258530163,0.88662329,117290.0,117280.0,0.0042]
[1752258530370,1.01906329,117290.0,117280.0,0.00713]
[1752258530574,1.01906329,117290.0,117280.0,0.0042]
[1752258531560,0.79906336,117290.0,117280.0,0.00713]
[1752258531763,0.93146336,117290.0,117280.0,0.00713]
[1752258532634,0.93340336,117290.0,117280.0,0.0042]
[1752258532970,0.93340336,117290.0,117280.0,0.00713]
[1752258533734,0.93340336,117290.0,117280.0,0.0042]
[1752258535792,0.93340336,117290.0,117280.0,0.00713]
[1752258535988,0.50916985,117290.0,117280.0,0.03783]
[1752258536189,0.94588421,117290.0,117280.0,0.03783]
[1752258536417,0.79525521,117290.0,117280.0,0.03783]
[1752258536644,0.91606436,117290.0,117280.0,0.03783]
[1752258536837,0.47735,117290.0,117280.0,0.03783]
[1752258537285,0.47835,117290.0,117280.0,0.03783]
[1752258537641,0.91506436,117290.0,117280.0,0.03783]
[1752258537866,0.91306436,117290.0,117280.0,0.03783]
[1752258539960,0.91608436,117290.0,117280.0,0.00713]
[1752258540179,0.93062521,117290.0,117280.0,0.00713]
[1752258540408,0.93062521,117290.0,117280.0,0.0022]
[1752258540608,0.96262521,117290.0,117280.0,0.0022]
[1752258540811,1.05112514,117290.0,117280.0,0.0022]
[1752258541224,1.07669714,117290.0,117280.0,0.0022]
[1752258541447,0.00303,117250.0,117200.0,0.04697]
[1752258541656,0.00303,117250.0,117210.0,0.08542993]
[1752258541657,0.43671436,117230.0,117210.0,0.08542993]
[1752258541851,0.13232,117220.0,117210.0,0.08542993]
[1752258542277,0.13232,117220.0,117210.0,0.08742993]
[1752258542771,0.13428,117230.0,117210.0,0.08742993]
[1752258542976,8.462e-05,117220.0,117210.0,0.08742993]
[1752258543195,8.462e-05,117220.0,117210.0,0.08956285]
[1752258543408,8.462e-05,117220.0,117210.0,0.09456285]
[1752258543619,8.462e-05,117220.0,117210.0,0.11081599]
[1752258543826,8.462e-05,117220.0,117210.0,0.11881599]
[1752258544036,8.462e-05,117220.0,117210.0,0.11081599]
[1752258544471,8.462e-05,117220.0,117210.0,0.15041599]
[1752258544914,8.462e-05,117220.0,117210.0,0.13709285]
[1752258545808,8.462e-05,117220.0,117210.0,0.13495993]
[1752258547570,8.462e-05,117220.0,117210.0,0.14828319]
[1752258549401,8.462e-05,117220.0,117210.0,0.15041611]
[1752258550490,8.462e-05,117220.0,117210.0,0.13709285]
[1752258552057,8.462e-05,117220.0,117210.0,0.13495993]
[1752258553582,8.462e-05,117220.0,117210.0,0.14828321]
[1752258557870,8.462e-05,117220.0,117210.0,0.15041613]
[1752258558819,8.462e-05,117220.0,117210.0,0.28257613]
[1752258559036,8.462e-05,117220.0,117210.0,0.28044321]
[1752258560621,8.462e-05,117220.0,117210.0,0.26711993]
[1752258563094,8.462e-05,117220.0,117210.0,0.71492206]
[1752258567604,8.462e-05,117220.0,117210.0,0.26711993]
[1752258567832,8.462e-05,117220.0,117210.0,0.71492206]
[1752258574726,8.462e-05,117220.0,117210.0,0.58276206]
[1752258575260,8.462e-05,117220.0,117210.0,0.13495993]
[1752258575579,8.462e-05,117220.0,117210.0,0.58489498]
[1752258575786,8.462e-05,117220.0,117210.0,0.58276206]
[1752258579239,0.06844627,117240.0,117220.0,0.27952]
[1752258579473,0.48170213,117250.0,117230.0,0.09286248]
[1752258579683,0.10034627,117240.0,117230.0,0.09072993]
[1752258579886,0.10034627,117240.0,117230.0,0.35380993]
[1752258580170,0.0339,117250.0,117230.0,0.80161206]
[1752258580375,0.0339,117250.0,117240.0,0.0032]
[1752258580587,0.0339,117250.0,117240.0,0.09072993]
[1752258580983,0.0183,117250.0,117240.0,0.09072993]
[1752258581715,0.0183,117250.0,117240.0,0.09272993]
[1752258582125,0.0339,117250.0,117240.0,0.09272993]
[1752258582331,0.002,117250.0,117240.0,0.54266443]
[1752258582540,0.002,117250.0,117240.0,0.54053206]
[1752258583682,0.002,117250.0,117240.0,0.55883206]
[1752258583910,0.002,117250.0,117240.0,0.57503206]
[1752258584970,0.002,117250.0,117240.0,0.55883206]
[1752258585337,0.002,117250.0,117240.0,0.09472993]
[1752258585526,0.002,117250.0,117240.0,0.0968623]
[1752258586125,0.002,117250.0,117240.0,0.54466443]
[1752258586330,0.002,117250.0,117240.0,0.54253206]
[1752258586528,0.002,117250.0,117240.0,0.09472993]
[1752258586825,0.002,117250.0,117240.0,0.0968623]
[1752258589603,0.002,117250.0,117240.0,0.54466443]
[1752258589810,0.002,117250.0,117240.0,0.54253206]
[1752258590403,0.002,117250.0,117240.0,0.09472993]
[1752258590644,0.002,117250.0,117240.0,0.0968623]
[1752258591815,0.00157353,117250.0,117240.0,0.0968623]
[1752258602959,0.1020198,117250.0,117240.0,0.0968623]
[1752258603182,0.89498193,117250.0,117240.0,0.08942993]
[1752258603408,0.94498193,117250.0,117240.0,0.08942993]
[1752258604096,0.94801193,117250.0,117240.0,0.004]
[1752258605559,1.01096566,117250.0,117240.0,0.004]
[1752258605808,0.96096566,117250.0,117240.0,0.004]
[1752258606026,1.01096566,117250.0,117240.0,0.004]
[1752258607745,0.42873353,117250.0,117240.0,0.09148993]
[1752258607956,0.03357353,117250.0,117240.0,0.09450993]
[1752258608402,0.03357353,117250.0,117240.0,0.35730993]
[1752258610776,0.00157353,117250.0,117240.0,0.35730993]
[1752258612103,0.03427353,117250.0,117240.0,0.35730993]
[1752258612943,0.00157353,117250.0,117240.0,0.35730993]
[1752258614609,0.00157353,117250.0,117240.0,0.80511206]
[1752258614979,0.00157353,117250.0,117240.0,0.35730993]
[1752258618866,0.00157353,117250.0,117240.0,0.36657774]
[1752258619084,0.37045679,117270.0,117250.0,0.44780213]
[1752258619331,0.0182,117270.0,117260.0,0.34822993]
[1752258619553,0.0182,117270.0,117260.0,0.35029993]
[1752258619794,0.46800213,117270.0,117260.0,0.34822993]
[1752258620018,0.47124213,117270.0,117260.0,0.34822993]
[1752258620662,0.47139182,117270.0,117260.0,0.34822993]
[1752258620896,0.4806054,117270.0,117260.0,0.34822993]
[1752258621981,0.4958054,117270.0,117260.0,0.34822993]
[1752258623494,0.4958054,117270.0,117260.0,0.34922993]
[1752258623960,0.04800327,117270.0,117260.0,0.34922993]
[1752258624179,0.4958054,117270.0,117260.0,0.35129993]
[1752258624614,0.48659182,117270.0,117260.0,0.35129993]
[1752258625305,0.48335182,117270.0,117260.0,0.35129993]
[1752258626177,0.01834969,117270.0,117260.0,0.35441993]
[1752258626370,0.00214969,117270.0,117260.0,0.35441993]
[1752258629535,0.00214969,117270.0,117260.0,0.80222206]
[1752258629739,0.00214969,117270.0,117260.0,0.81822206]
[1752258629957,0.00214969,117270.0,117260.0,0.35441993]
[1752258634099,0.46495182,117270.0,117260.0,0.35441993]
[1752258634327,0.01714969,117270.0,117260.0,0.35441993]
[1752258634551,0.00214969,117270.0,117260.0,0.35441993]
[1752258636948,0.01774969,117270.0,117260.0,0.35441993]
[1752258637174,0.48699182,117270.0,117260.0,0.34922993]
[1752258638468,0.03918969,117270.0,117260.0,0.34922993]
[1752258638677,0.48699182,117270.0,117260.0,0.34922993]
[1752258638906,0.03918969,117270.0,117260.0,0.34922993]
[1752258640183,0.48699182,117270.0,117260.0,0.34922993]
[1752258640937,0.03918969,117270.0,117260.0,0.34922993]
[1752258641150,0.48699182,117270.0,117260.0,0.34922993]
[1752258642387,0.88002182,117270.0,117260.0,0.08642993]
[1752258642595,0.88002182,117270.0,117260.0,0.001]
[1752258644427,0.0306,117230.0,117220.0,0.13648]
[1752258644605,0.48040213,117230.0,117220.0,0.08949993]
[1752258645690,0.48040213,117230.0,117220.0,0.08999814]
[1752258646081,0.48040213,117230.0,117220.0,0.09399814]
[1752258646924,0.48040213,117230.0,117220.0,0.09699814]
[1752258649889,0.48365213,117230.0,117220.0,0.09397814]
[1752258650509,0.48365213,117230.0,117220.0,0.09199814]
[1752258651601,0.53365213,117230.0,117220.0,0.09199814]
[1752258651820,0.21721,117230.0,117220.0,0.09199814]
[1752258652039,0.66501213,117230.0,117220.0,0.09199814]
[1752258652254,0.66501213,117230.0,117220.0,0.09397814]
[1752258652499,0.48365213,117230.0,117220.0,0.09397814]
[1752258652711,0.0826,117230.0,117220.0,0.09397814]
[1752258652934,0.0826,117230.0,117220.0,0.09611088]
[1752258653142,0.53040213,117230.0,117220.0,0.09611088]
[1752258653351,0.53365213,117230.0,117220.0,0.09611088]
[1752258653777,0.49780213,117230.0,117220.0,0.09611088]
[1752258653992,0.0319,117230.0,117220.0,0.09611088]
[1752258654203,0.52970213,117230.0,117220.0,0.09611088]
[1752258654418,0.03515,117240.0,117220.0,0.09916088]
[1752258654641,0.0319,117240.0,117230.0,0.13136]
[1752258654868,0.03392,117240.0,117230.0,0.21876993]
[1752258655074,0.48497213,117240.0,117230.0,0.21876993]
[1752258656098,0.48172213,117240.0,117230.0,0.21876993]
[1752258656333,0.38666485,117250.0,117230.0,0.21876993]
[1752258656541,0.0182,117250.0,117240.0,0.08542993]
[1752258656748,0.002,117250.0,117240.0,0.08740993]
[1752258656959,0.002,117250.0,117240.0,0.0925923]
[1752258657172,0.002,117250.0,117240.0,0.1077923]
[1752258657395,0.002,117250.0,117240.0,0.55559443]
[1752258657612,0.002,117250.0,117240.0,0.10565993]
[1752258657824,0.002,117250.0,117240.0,0.1077923]
[1752258658045,0.002,117250.0,117240.0,0.1087923]
[1752258658258,0.002,117250.0,117240.0,0.0935923]
[1752258658642,0.002,117250.0,117240.0,0.1092923]
[1752258659128,0.002,117250.0,117240.0,0.57469443]
[1752258659339,0.002,117250.0,117240.0,0.57256206]
[1752258659551,0.002,117250.0,117240.0,0.12475993]
[1752258659764,0.002,117250.0,117240.0,0.1268923]
[1752258659991,0.002,117250.0,117240.0,0.0945923]
[1752258660204,0.44780213,117250.0,117240.0,0.08940993]
[1752258660420,0.48010213,117250.0,117240.0,0.08940993]
[1752258660930,0.48537213,117250.0,117240.0,0.08840993]
[1752258661129,0.48537213,117250.0,117240.0,0.06444493]
[1752258661307,0.48537213,117250.0,117240.0,0.06344493]
[1752258661543,0.48212213,117250.0,117240.0,0.06644493]
[1752258661754,0.0323,117250.0,117240.0,0.06644493]
[1752258663427,0.03757,117250.0,117240.0,0.06644493]
[1752258667596,0.48537213,117250.0,117240.0,0.06446493]
[1752258668429,0.03757,117250.0,117240.0,0.06446493]
[1752258668635,0.48537213,117250.0,117240.0,0.06446493]
[1752258669301,0.03757,117250.0,117240.0,0.06446493]
[1752258669542,0.48537213,117250.0,117240.0,0.06446493]
[1752258669692,0.03757,117250.0,117240.0,0.06446493]
[1752258670098,0.03757,117250.0,117240.0,0.06644493]
[1752258670885,0.0323,117250.0,117240.0,0.06644493]
[1752258671055,0.03485,117260.0,117240.0,0.0685773]
[1752258671214,0.03485,117260.0,117250.0,0.26304]
[1752258671427,0.03362,117260.0,117250.0,0.35044993]
[1752258671634,0.0153,117260.0,117250.0,0.35044993]
[1752258672232,0.0316,117260.0,117250.0,0.35044993]
[1752258672521,0.07155,117270.0,117250.0,0.35044993]
[1752258672652,0.53465213,117270.0,117260.0,0.08542993]
[1752258672858,0.53667213,117270.0,117260.0,0.08542993]
[1752258673868,0.53682182,117270.0,117260.0,0.08542993]
[1752258674288,0.48682182,117270.0,117260.0,0.08542993]
[1752258674493,0.53682182,117270.0,117260.0,0.08642993]
[1752258675494,0.03374969,117270.0,117260.0,0.08840993]
[1752258675800,0.00214969,117270.0,117260.0,0.55056414]
[1752258676000,0.00214969,117270.0,117260.0,0.57913213]
[1752258676616,0.00214969,117270.0,117260.0,0.76674887]
[1752258676830,0.00214969,117270.0,117260.0,0.11507]
[1752258677034,0.00214969,117270.0,117260.0,0.12493353]
[1752258677518,0.00214969,117270.0,117260.0,0.12394353]
[1752258677754,0.00214969,117270.0,117260.0,0.12194353]
[1752258677968,0.00214969,117270.0,117260.0,0.08740993]
[1752258677969,0.01864969,117270.0,117260.0,0.08740993]